[Event "WYCC 2018 G16"]
[Site "Halkidiki"]
[Date "2018.10.24"]
[Round "6"]
[White "Kucharska, Honorata"]
[Black "Makhija, Aashna"]
[Result "1/2-1/2"]
[ECO "C77"]
[WhiteElo "2073"]
[BlackElo "2197"]
[Annotator "ChessBase"]
[PlyCount "147"]
[EventDate "2018.10.20"]
[EventType "swiss"]
[EventCountry "GRE"]
[SourceTitle "playchess.com"]
[Source "ChessBase"]
[SourceQuality "1"]
[TimeControl "40/5400+30:1800+30"]

1. e4 {[%emt 0:00:00]} e5 {[%emt 0:00:00]} 2. Nf3 {[%emt 0:00:00]} Nc6 {[%emt 0:00:00]} 3. Bb5 {[%emt 0:00:16]} a6 {[%emt 0:00:24]} 4. Ba4 {[%emt 0:00:09]} Nf6 {[%emt 0:00:26]} 5. d3 {[%emt 0:00:09]} d6 {[%emt 0:00:31]} 6. c3 {[%emt 0:00:57]} g6 {[%emt 0:02:56]} 7. O-O {[%emt 0:02:56]} Bg7 {[%emt 0:00:24]} 8. h3 {[%emt 0:01:56]} O-O {[%emt 0:00:55]} 9. Re1 {[%emt 0:04:09]} b5 {[%emt 0:01:05]} 10. Bc2 {[%emt 0:04:06]} Re8 {[%emt 0:02:00]} 11. Nbd2 {[%emt 0:01:24]} Bb7 {[%emt 0:02:22]} 12. Nf1 {[%emt 0:02:35]} h6 {[%emt 0:05:05]} 13. Ng3 {[%emt 0:03:00]} d5 {[%emt 0:04:11]} 14. Qe2 {[%emt 0:00:44]} Qe7 {[%emt 0:03:29]} 15. Be3 {[%emt 0:06:28]} Rad8 {[%emt 0:03:30]} 16. a3 {[%emt 0:05:01]} d4 {[%emt 0:24:46]} 17. cxd4 {[%emt 0:04:06]} Nxd4 {[%emt 0:01:36]} 18. Nxd4 {[%emt 0:06:20]} exd4 {[%emt 0:00:52]} 19. Bd2 {[%emt 0:00:08]} c5 {[%emt 0:08:41]} 20. f4 {[%emt 0:06:47]} Nd7 {[%emt 0:06:52]} 21. Qf2 {[%emt 0:02:28]} c4 {[%emt 0:10:17]} 22. Bb4 {[%emt 0:05:35]} Qe6 {[%emt 0:02:52]} 23. Kh2 {[%emt 0:02:46]} Qb6 {[%emt 0:02:09]} 24. e5 {[%emt 0:09:37]} Nc5 {[%emt 0:07:16]} 25. Bxc5 {[%emt 0:00:44]} Qxc5 {[%emt 0:00:02]} 26. Ne4 {[%emt 0:03:40]} Bxe4 {[%emt 0:01:31]} 27. Rxe4 {[%emt 0:00:04]} Qd5 {[%emt 0:03:29]} 28. Rae1 {[%emt 0:01:41]} Kh7 {[%emt 0:02:11]} 29. Kh1 {[%emt 0:00:55]} Re7 {[%emt 0:01:29]} 30. Rd1 {[%emt 0:01:05]} Red7 {[%emt 0:02:38]} 31. Qe2 {[%emt 0:04:04]} Qe6 {[%emt 0:00:41]} 32. Rf1 {[%emt 0:00:53]} Qd5 {[%emt 0:00:45]} 33. f5 {[%emt 0:02:10]} Bf8 {[%emt 0:00:31]} 34. e6 {[%emt 0:01:44]} Re7 {[%emt 0:00:29]} 35. fxg6+ {[%emt 0:04:11]} fxg6 {[%emt 0:00:08]} 36. Qg4 {[%emt 0:03:50]} Qg5 {[%emt 0:00:33]} 37. Qe2 {[%emt 0:03:59]} Qd5 {[%emt 0:00:39]} 38. a4 {[%emt 0:02:46]} Bg7 {[%emt 0:00:28]} 39. Qg4 {[%emt 0:03:34]} Qg5 {[%emt 0:00:33]} 40. Qxg5 {[%emt 0:00:00]} hxg5 {[%emt 0:00:00]} 41. Rfe1 {[%emt 0:06:35]} Rd6 {[%emt 0:08:16]} 42. Kg1 {[%emt 0:02:28]} Rb6 {[%emt 0:11:44]} 43. a5 {[%emt 0:03:12]} Rd6 {[%emt 0:01:24]} 44. Kh2 {[%emt 0:06:25]} Kg8 {[%emt 0:02:00]} 45. Kg3 {[%emt 0:00:31]} Bf6 {[%emt 0:01:30]} 46. Kf3 {[%emt 0:06:33]} Kf8 {[%emt 0:00:47]} 47. b3 {[%emt 0:01:28]} cxd3 {[%emt 0:03:12]} 48. Bxd3 {[%emt 0:00:09]} Rc7 {[%emt 0:00:34]} 49. Kg4 {[%emt 0:03:30]} Ke7 {[%emt 0:03:57]} 50. b4 {[%emt 0:03:06]} Rc3 {[%emt 0:00:36]} 51. Rf1 {[%emt 0:00:39]} Rxd3 {[%emt 0:00:16]} 52. Rxf6 {[%emt 0:00:04]} Re3 {[%emt 0:02:09]} 53. Rf7+ {[%emt 0:00:34]} Ke8 {[%emt 0:00:07]} 54. Rxe3 {[%emt 0:00:39]} dxe3 {[%emt 0:00:02]} 55. Rf1 {[%emt 0:00:13]} Rxe6 {[%emt 0:00:43]} 56. Kxg5 {[%emt 0:00:26]} Ke7 {[%emt 0:01:13]} 57. Re1 {[%emt 0:00:30]} Re4 {[%emt 0:00:41]} 58. Kxg6 {[%emt 0:00:06]} Kd6 {[%emt 0:00:21]} 59. Kf5 {[%emt 0:00:37]} Kd5 {[%emt 0:00:36]} 60. g4 {[%emt 0:00:55]} Re8 {[%emt 0:00:24]} 61. g5 {[%emt 0:00:23]} Kd4 {[%emt 0:00:25]} 62. g6 {[%emt 0:01:24]} Kd3 {[%emt 0:00:35]} 63. g7 {[%emt 0:00:28]} Kd2 {[%emt 0:00:39]} 64. Rg1 {[%emt 0:00:36]} e2 {[%emt 0:00:22]} 65. Kf6 {[%emt 0:00:04]} Rc8 {[%emt 0:00:35]} 66. h4 {[%emt 0:01:28]} Rc6+ {[%emt 0:00:30]} 67. Kf7 {[%emt 0:00:09]} Rc7+ {[%emt 0:00:18]} 68. Kf6 {[%emt 0:00:29]} Rc6+ {[%emt 0:00:22]} 69. Kf5 {[%emt 0:00:14]} Rc1 {[%emt 0:00:40]} 70. g8=Q {[%emt 0:00:08]} Rf1+ {[%emt 0:00:11]} 71. Rxf1 {[%emt 0:00:29]} exf1=Q+ {[%emt 0:00:07]} 72. Ke5 {[%emt 0:00:14]} Qe2+ {[%emt 0:01:15]} 73. Kd6 {[%emt 0:01:10]} Qh2+ {[%emt 0:00:21]} 74. Kc6 {[%emt 0:00:41]} 1/2-1/2

[Event "WYCC 2018 G16"]
[Site "Halkidiki"]
[Date "2018.10.24"]
[Round "6"]
[White "Meenal Gupta"]
[Black "Djidjeli, Sarah"]
[Result "1-0"]
[ECO "B31"]
[WhiteElo "2065"]
[BlackElo "1952"]
[Annotator "NA"]
[PlyCount "83"]
[EventDate "2018.10.20"]
[EventType "swiss"]
[EventCountry "GRE"]
[SourceTitle "playchess.com"]
[Source "ChessBase"]
[SourceQuality "1"]
[TimeControl "40/5400+30:1800+30"]

1. e4 {[%emt 0:00:00]} c5 {[%emt 0:00:00]} 2. Nf3 {[%emt 0:00:00]} Nc6 {[%emt 0:00:00]} 3. Bb5 {[%emt 0:00:00]} g6 {[%emt 0:00:00]} 4. Bxc6 {[%emt 0:00:00]} dxc6 {[%emt 0:00:00]} 5. O-O {[%emt 0:00:01]} Bg7 {[%emt 0:00:06]} 6. d3 {[%emt 0:03:34]} b6 {[%emt 0:02:26]} 7. Nc3 {[%emt 0:06:05]} e5 {[%emt 0:04:56]} 8. h3 {[%emt 0:04:04]} Ne7 {[%emt 0:00:34]} 9. Be3 {[%emt 0:12:06]} h6 {[%emt 0:03:05]} 10. Ne1 {[%emt 0:07:19]} g5 {[%emt 0:07:43]} 11. a4 {[%emt 0:02:24]} a5 {[%emt 0:01:57]} 12. Nb1 {[%emt 0:01:43]} Ng6 {[%emt 0:04:04]} 13. c3 {[%emt 0:04:48]} h5 {[%emt 0:11:50]} 14. Kh2 {[%emt 0:00:29]} g4 {[%emt 0:07:39]} 15. Nd2 {[%emt 0:01:48]} Nf4 {[%emt 0:04:31]} 16. Nc4 {[%emt 0:03:55]} Be6 {[%emt 0:02:01]} 17. b3 {[%emt 0:04:09]} Rb8 {[%emt 0:27:12]} 18. d4 {[%emt 0:01:58]} cxd4 {[%emt 0:02:03]} 19. cxd4 {[%emt 0:00:12]} Ng6 {[%emt 0:01:54]} 20. d5 {[%emt 0:05:12]} cxd5 {[%emt 0:01:35]} 21. exd5 {[%emt 0:00:09]} Qxd5 {[%emt 0:03:31]} 22. Qe2 {[%emt 0:00:22]} Qc6 {[%emt 0:04:35]} 23. Rc1 {[%emt 0:00:04]} Bxc4 {[%emt 0:00:14]} 24. Rxc4 Qe6 {[%emt 0:01:14]} 25. Bc1 {[%emt 0:09:31]} Kf8 {[%emt 0:04:53]} 26. Nd3 {[%emt 0:01:25]} Kg8 {[%emt 0:01:08]} 27. Bb2 {[%emt 0:00:50]} gxh3 {[%emt 0:02:00]} 28. gxh3 {[%emt 0:00:07]} Qd6 {[%emt 0:01:22]} 29. Kh1 {[%emt 0:01:33]} Rd8 {[%emt 0:00:13]} 30. Ne1 {[%emt 0:02:01]} Qd5+ {[%emt 0:00:32]} 31. f3 {[%emt 0:01:22]} Nf4 {[%emt 0:00:39]} 32. Rxf4 {[%emt 0:03:55]} exf4 {[%emt 0:00:07]} 33. Rg1 {[%emt 0:00:11]} Rh7 {[%emt 0:00:06]} 34. Bf6 {[%emt 0:00:05]} Qd2 {[%emt 0:01:48]} 35. Qe5 {[%emt 0:00:19]} Qd7 {[%emt 0:00:15]} 36. Kh2 {[%emt 0:00:25]} Qe6 {[%emt 0:00:37]} 37. Qb2 {[%emt 0:00:42]} Re8 {[%emt 0:00:30]} 38. Rg2 {[%emt 0:00:44]} Kf8 {[%emt 0:01:00]} 39. Bxg7+ Ke7 {[%emt 0:00:19]} 40. Re2 {[%emt 0:00:00]} Kd7 {[%emt 0:00:00]} 41. Rxe6 {[%emt 0:01:10]} Rxe6 {[%emt 0:00:39]} 42. Be5 {[%emt 0:00:13]} 1-0

[Event "WYCC 2018 G16"]
[Site "Halkidiki"]
[Date "2018.10.24"]
[Round "6"]
[White "Sankova, Stella"]
[Black "Hovhannisyan, Mane"]
[Result "1-0"]
[ECO "B13"]
[WhiteElo "2051"]
[BlackElo "1730"]
[Annotator "NA"]
[PlyCount "69"]
[EventDate "2018.10.20"]
[EventType "swiss"]
[EventCountry "GRE"]
[SourceTitle "playchess.com"]
[Source "ChessBase"]
[SourceQuality "1"]
[TimeControl "40/5400+30:1800+30"]

1. e4 {[%emt 0:00:00]} c6 {[%emt 0:00:00]} 2. d4 {[%emt 0:00:00]} d5 {[%emt 0:00:00]} 3. exd5 {[%emt 0:00:00]} cxd5 {[%emt 0:00:00]} 4. Bd3 {[%emt 0:00:00]} Nc6 {[%emt 0:00:00]} 5. c3 {[%emt 0:00:00]} Qc7 {[%emt 0:00:13]} 6. Ne2 {[%emt 0:00:06]} Bg4 {[%emt 0:00:12]} 7. f3 {[%emt 0:00:03]} Bh5 {[%emt 0:00:06]} 8. Bf4 {[%emt 0:00:53]} Qb6 {[%emt 0:02:58]} 9. Qb3 {[%emt 0:01:21]} Qxb3 {[%emt 0:01:12]} 10. axb3 {[%emt 0:00:04]} e6 {[%emt 0:00:07]} 11. Na3 {[%emt 0:10:20]} Nf6 {[%emt 0:09:30]} 12. O-O {[%emt 0:04:24]} Be7 {[%emt 0:00:54]} 13. b4 {[%emt 0:02:28]} Kd7 {[%emt 0:12:56]} 14. b5 {[%emt 0:11:09]} Nd8 {[%emt 0:02:08]} 15. Nc2 {[%emt 0:06:51]} Ne8 {[%emt 0:16:34]} 16. Ra4 {[%emt 0:07:35]} Nd6 {[%emt 0:00:23]} 17. Rfa1 {[%emt 0:02:18]} Nc8 {[%emt 0:01:09]} 18. Ne3 {[%emt 0:07:12]} Bg6 {[%emt 0:00:28]} 19. Nc1 {[%emt 0:06:19]} f6 {[%emt 0:00:54]} 20. Be2 {[%emt 0:05:52]} Nf7 {[%emt 0:01:22]} 21. Bg3 {[%emt 0:04:51]} Nfd6 {[%emt 0:01:07]} 22. Nb3 {[%emt 0:02:43]} b6 {[%emt 0:09:31]} 23. Nd2 {[%emt 0:06:07]} Nf5 {[%emt 0:09:27]} 24. Nxf5 {[%emt 0:00:17]} Bxf5 {[%emt 0:00:05]} 25. b3 {[%emt 0:04:49]} h5 {[%emt 0:01:32]} 26. c4 {[%emt 0:04:34]} Bd6 {[%emt 0:03:21]} 27. Bxd6 {[%emt 0:01:58]} Kxd6 {[%emt 0:00:14]} 28. Ra6 {[%emt 0:02:00]} dxc4 {[%emt 0:05:05]} 29. bxc4 {[%emt 0:00:11]} Kc7 {[%emt 0:11:02]} 30. c5 {[%emt 0:01:34]} Rd8 {[%emt 0:02:47]} 31. Nb3 {[%emt 0:02:46]} Bc2 {[%emt 0:00:22]} 32. cxb6+ {[%emt 0:00:17]} Kb8 {[%emt 0:01:52]} 33. Na5 {[%emt 0:01:45]} Nxb6 {[%emt 0:01:34]} 34. Nc6+ {[%emt 0:00:18]} Kb7 {[%emt 0:00:22]} 35. Rxa7+ {[%emt 0:01:29]} 1-0

[Event "WYCC 2018 G16"]
[Site "Halkidiki"]
[Date "2018.10.24"]
[Round "6"]
[White "Cramling Bellon, Anna"]
[Black "Kalyva, Kyriaki"]
[Result "1/2-1/2"]
[ECO "D44"]
[WhiteElo "2025"]
[BlackElo "1779"]
[Annotator "NA"]
[PlyCount "57"]
[EventDate "2018.10.20"]
[EventType "swiss"]
[EventCountry "GRE"]
[SourceTitle "playchess.com"]
[Source "ChessBase"]
[SourceQuality "1"]
[TimeControl "40/5400+30:1800+30"]

1. d4 {[%emt 0:00:00]} d5 {[%emt 0:00:00]} 2. c4 {[%emt 0:00:00]} c6 {[%emt 0:00:00]} 3. Nf3 {[%emt 0:00:00]} Nf6 {[%emt 0:00:00]} 4. Nc3 {[%emt 0:00:00]} e6 {[%emt 0:00:00]} 5. Bg5 {[%emt 0:00:00]} dxc4 {[%emt 0:00:00] LiveBook: 2718 Games} 6. e4 {[%emt 0:00:51]} b5 {[%emt 0:00:00]} 7. e5 {[%emt 0:00:16]} h6 {[%emt 0:00:03]} 8. Bh4 {[%emt 0:00:03]} g5 {[%emt 0:00:04]} 9. exf6 {[%emt 0:04:30]} gxh4 {[%emt 0:00:09]} 10. Ne5 {[%emt 0:00:02]} Qxf6 {[%emt 0:00:17]} 11. Be2 {[%emt 0:00:05]} Bd6 {[%emt 0:09:51]} 12. Ne4 {[%emt 0:15:26]} Bb4+ {[%emt 0:01:01]} 13. Kf1 {[%emt 0:00:07]} Qg7 $17 {[%emt 0:09:02]} 14. Bh5 {[%emt 0:26:03]} O-O {[%emt 0:01:15]} 15. Qf3 {[%emt 0:06:49]} f5 {[%emt 0:06:17]} 16. Nc3 {[%emt 0:00:07]} Bb7 {[%emt 0:00:08]} 17. Qh3 {[%emt 0:09:55]} Bd6 {[%emt 0:11:33]} 18. Nf3 {[%emt 0:08:37]} b4 {[%emt 0:04:40]} 19. Ne2 {[%emt 0:07:37]} c5 {[%emt 0:04:21]} 20. Qxh4 {[%emt 0:04:58]} Be4 {[%emt 0:01:51]} 21. Rg1 {[%emt 0:01:42]} Kh8 {[%emt 0:09:33]} 22. Rd1 {[%emt 0:09:32]} Nc6 {[%emt 0:03:40]} 23. dxc5 {[%emt 0:01:05]} Bxc5 {[%emt 0:01:08]} 24. Nf4 {[%emt 0:00:13]} Qxb2 {[%emt 0:01:42]} 25. Bg6 {[%emt 0:02:58]} Kg8 {[%emt 0:03:26]} 26. Qg3 {[%emt 0:01:21]} Kh8 {[%emt 0:04:59]} 27. Qh4 {[%emt 0:00:06]} Kg8 {[%emt 0:05:06]} 28. Qg3 {[%emt 0:01:05]} Kh8 {[%emt 0:01:49]} 29. Qh4 {[%emt 0:00:22]} 1/2-1/2

[Event "WYCC 2018 G16"]
[Site "Halkidiki"]
[Date "2018.10.24"]
[Round "6"]
[White "Miroshnik, Ekaterina"]
[Black "Staravoitava, Hanna"]
[Result "1/2-1/2"]
[ECO "E15"]
[WhiteElo "2023"]
[BlackElo "1768"]
[Annotator "NA"]
[PlyCount "126"]
[EventDate "2018.10.20"]
[EventType "swiss"]
[EventCountry "GRE"]
[SourceTitle "playchess.com"]
[Source "ChessBase"]
[SourceQuality "1"]
[TimeControl "40/5400+30:1800+30"]

1. d4 {[%emt 0:00:00]} Nf6 {[%emt 0:00:00]} 2. c4 {[%emt 0:00:00]} e6 {[%emt 0:00:00]} 3. Nf3 {[%emt 0:00:00]} b6 {[%emt 0:00:00]} 4. g3 {[%emt 0:01:11]} Bb4+ {[%emt 0:00:21]} 5. Bd2 {[%emt 0:00:06]} Bxd2+ {[%emt 0:00:05]} 6. Qxd2 {[%emt 0:00:32]} Ba6 {[%emt 0:00:06]} 7. Qc2 {[%emt 0:00:45]} d5 {[%emt 0:02:26]} 8. Nbd2 {[%emt 0:01:46]} O-O {[%emt 0:02:53]} 9. Bg2 {[%emt 0:00:25]} Nbd7 {[%emt 0:04:30]} 10. O-O {[%emt 0:01:51]} c5 {[%emt 0:04:57]} 11. Qa4 {[%emt 0:05:38]} Bb7 {[%emt 0:00:55]} 12. e3 {[%emt 0:03:10]} Qe7 {[%emt 0:04:59]} 13. Rac1 {[%emt 0:04:10]} e5 {[%emt 0:07:12]} 14. dxe5 {[%emt 0:17:23]} Nxe5 {[%emt 0:00:12]} 15. Nxe5 {[%emt 0:00:11]} Qxe5 {[%emt 0:00:14]} 16. Qa3 {[%emt 0:01:05]} Qe7 {[%emt 0:13:06]} 17. cxd5 {[%emt 0:08:02]} Nxd5 {[%emt 0:01:01]} 18. Nc4 {[%emt 0:05:41]} Nb4 {[%emt 0:07:21]} 19. Bxb7 {[%emt 0:01:12]} Qxb7 {[%emt 0:00:08]} 20. Rfd1 {[%emt 0:00:16]} Rfd8 {[%emt 0:03:50]} 21. Qb3 {[%emt 0:01:49]} Qe4 {[%emt 0:06:40]} 22. a3 {[%emt 0:13:45]} Nd5 {[%emt 0:08:45]} 23. Nd2 {[%emt 0:01:06]} Qg6 {[%emt 0:01:24]} 24. Nf3 {[%emt 0:01:29]} Qe4 {[%emt 0:00:19]} 25. Ng5 {[%emt 0:06:38]} Qf5 {[%emt 0:01:02]} 26. f4 {[%emt 0:02:30]} Nc7 {[%emt 0:16:12]} 27. e4 {[%emt 0:02:32]} Qf6 {[%emt 0:00:21]} 28. Qc2 {[%emt 0:03:41]} Ne6 {[%emt 0:02:02]} 29. e5 {[%emt 0:05:12]} Qg6 {[%emt 0:00:31]} 30. Qxg6 {[%emt 0:00:34]} hxg6 {[%emt 0:00:07]} 31. Nf3 {[%emt 0:03:34]} Kf8 {[%emt 0:00:30]} 32. Kf2 {[%emt 0:00:05]} Ke7 {[%emt 0:00:15]} 33. Ke3 {[%emt 0:00:07]} Rac8 {[%emt 0:00:52]} 34. Ke4 {[%emt 0:04:43]} b5 {[%emt 0:05:07]} 35. Rxd8 {[%emt 0:03:24]} Rxd8 {[%emt 0:00:10]} 36. b3 {[%emt 0:00:58]} Kd7 {[%emt 0:04:06]} 37. g4 {[%emt 0:00:44]} Kc6 {[%emt 0:00:24]} 38. f5 {[%emt 0:01:08]} gxf5+ {[%emt 0:00:24]} 39. gxf5 {[%emt 0:00:02]} Nd4 {[%emt 0:00:36]} 40. Rd1 {[%emt 0:00:00]} Rh8 {[%emt 0:00:00]} 41. Nxd4+ {[%emt 0:05:05]} cxd4 {[%emt 0:04:01]} 42. Rc1+ {[%emt 0:04:44]} Kd7 {[%emt 0:01:12]} 43. Kxd4 {[%emt 0:04:20]} Rxh2 {[%emt 0:00:22]} 44. Rg1 {[%emt 0:01:05]} Rh5 {[%emt 0:08:08]} 45. Ke4 {[%emt 0:06:18]} Kc6 {[%emt 0:07:07]} 46. Rxg7 {[%emt 0:06:42]} Rh4+ {[%emt 0:00:05]} 47. Kf3 {[%emt 0:05:19]} Kd5 {[%emt 0:00:12]} 48. e6 {[%emt 0:02:10]} fxe6 {[%emt 0:00:59]} 49. f6 {[%emt 0:00:00]} Ke5 {[%emt 0:00:20]} 50. f7 {[%emt 0:01:04]} Rf4+ {[%emt 0:00:04]} 51. Ke3 {[%emt 0:00:18]} Rf1 {[%emt 0:02:05]} 52. Ke2 {[%emt 0:00:35]} Rf6 {[%emt 0:01:05]} 53. f8=Q {[%emt 0:00:42]} Rxf8 {[%emt 0:00:08]} 54. Rxa7 {[%emt 0:00:04]} Ke4 {[%emt 0:01:34]} 55. Rh7 {[%emt 0:00:34]} Kd4 {[%emt 0:04:24]} 56. Rh4+ {[%emt 0:00:36]} Kc3 {[%emt 0:00:51]} 57. Rb4 {[%emt 0:00:54]} Rf5 {[%emt 0:00:08]} 58. Ke3 {[%emt 0:00:21]} Rh5 {[%emt 0:00:58]} 59. Ke2 {[%emt 0:00:07]} Rd5 {[%emt 0:01:53]} 60. Ke3 {[%emt 0:00:35]} e5 {[%emt 0:00:21]} 61. Ke2 {[%emt 0:00:17]} Rc5 {[%emt 0:02:02]} 62. Ke3 {[%emt 0:00:30]} Rd5 {[%emt 0:00:24]} 63. Ke2 {[%emt 0:00:06]} Rc5 {[%emt 0:00:04]} 1/2-1/2

[Event "WYCC 2018 G16"]
[Site "Halkidiki"]
[Date "2018.10.24"]
[Round "6"]
[White "Nestorovic, Katarina"]
[Black "Akti, Ezgi"]
[Result "1/2-1/2"]
[ECO "C47"]
[WhiteElo "2015"]
[BlackElo "1643"]
[Annotator "NA"]
[PlyCount "128"]
[EventDate "2018.10.20"]
[EventType "swiss"]
[EventCountry "GRE"]
[SourceTitle "playchess.com"]
[Source "ChessBase"]
[SourceQuality "1"]
[TimeControl "40/5400+30:1800+30"]

1. e4 {[%emt 0:00:00]} e5 {[%emt 0:00:00]} 2. Nf3 {[%emt 0:00:01]} Nc6 {[%emt 0:00:00]} 3. Nc3 {[%emt 0:00:07]} Nf6 {[%emt 0:00:00]} 4. d4 {[%emt 0:00:05]} exd4 {[%emt 0:00:05]} 5. Nxd4 {[%emt 0:00:06]} Bb4 {[%emt 0:00:27]} 6. Nxc6 {[%emt 0:00:15]} bxc6 {[%emt 0:00:26]} 7. Bd3 {[%emt 0:00:04]} d5 {[%emt 0:00:37]} 8. exd5 {[%emt 0:00:15]} cxd5 {[%emt 0:00:09]} 9. O-O {[%emt 0:00:08]} O-O {[%emt 0:00:07]} 10. h3 {[%emt 0:00:09]} c6 {[%emt 0:07:34]} 11. Qf3 {[%emt 0:00:39]} Bd6 {[%emt 0:08:39] LiveBook: 146 Games} 12. Bf4 {[%emt 0:03:05]} Rb8 {[%emt 0:12:37]} 13. b3 {[%emt 0:03:56]} Qc7 {[%emt 0:15:20]} 14. Bxd6 $11 {[%emt 0:02:51]} Qxd6 {[%emt 0:00:07]} 15. Rfe1 {[%emt 0:00:48]} Be6 {[%emt 0:05:50]} 16. Rad1 {[%emt 0:06:16]} Rfd8 {[%emt 0:03:50]} 17. Ne2 {[%emt 0:05:20]} Nd7 {[%emt 0:09:19]} 18. Nd4 {[%emt 0:03:09]} Nc5 {[%emt 0:08:43]} 19. Bf5 {[%emt 0:04:23]} Re8 {[%emt 0:05:29]} 20. c3 {[%emt 0:05:57]} Bxf5 {[%emt 0:02:59]} 21. Nxf5 {[%emt 0:02:42]} Qf6 {[%emt 0:00:29]} 22. Re3 {[%emt 0:07:26]} Ne4 {[%emt 0:09:01]} 23. Rde1 {[%emt 0:06:05]} Re5 {[%emt 0:05:05]} 24. Nd4 {[%emt 0:03:54]} Qd6 {[%emt 0:03:05]} 25. Qf4 {[%emt 0:03:59]} g5 {[%emt 0:01:47]} 26. Qh2 {[%emt 0:02:28]} c5 {[%emt 0:00:36]} 27. Nc6 {[%emt 0:02:26]} Qxc6 {[%emt 0:00:32]} 28. Qxe5 {[%emt 0:00:12]} Re8 {[%emt 0:00:04]} 29. Qf5 {[%emt 0:00:39]} Re6 {[%emt 0:00:30]} 30. f3 {[%emt 0:02:09]} Rf6 {[%emt 0:00:18]} 31. Qg4 {[%emt 0:01:49]} Rf4 {[%emt 0:00:17]} 32. Qh5 {[%emt 0:02:20]} Rh4 {[%emt 0:00:11]} 33. Qxh4 {[%emt 0:00:41]} gxh4 {[%emt 0:00:04]} 34. fxe4 {[%emt 0:00:10]} dxe4 {[%emt 0:01:37]} 35. Rxe4 {[%emt 0:00:28]} Qf6 {[%emt 0:00:14]} 36. Rc4 {[%emt 0:00:52]} Qd6 {[%emt 0:01:17]} 37. a4 {[%emt 0:03:25]} Qd2 {[%emt 0:00:22]} 38. Rf1 {[%emt 0:01:26]} Qe3+ {[%emt 0:00:18]} 39. Kh1 {[%emt 0:00:27]} Qd3 {[%emt 0:00:20]} 40. Rcf4 {[%emt 0:00:00]} Qxc3 {[%emt 0:00:00]} 41. Rxf7 {[%emt 0:04:28]} a6 {[%emt 0:08:51]} 42. R7f4 {[%emt 0:02:23]} h5 {[%emt 0:03:14]} 43. Rxh4 {[%emt 0:03:22]} Qe5 {[%emt 0:03:16]} 44. Rhf4 {[%emt 0:00:55]} Qd5 {[%emt 0:01:32]} 45. R1f3 {[%emt 0:01:11]} Qd1+ {[%emt 0:00:15]} 46. Kh2 {[%emt 0:00:21]} Qd6 {[%emt 0:00:05]} 47. Rg3+ {[%emt 0:06:20]} Kh7 {[%emt 0:00:07]} 48. Rf5 {[%emt 0:00:14]} Kh6 {[%emt 0:00:15]} 49. h4 {[%emt 0:00:16]} a5 {[%emt 0:00:27]} 50. Kh3 {[%emt 0:03:21]} Qe6 {[%emt 0:02:05]} 51. Rgg5 {[%emt 0:03:34]} Qxb3+ {[%emt 0:02:34]} 52. g3 {[%emt 0:00:12]} Qe6 {[%emt 0:01:00]} 53. Rxh5+ {[%emt 0:00:42]} Kg7 {[%emt 0:00:34]} 54. Rhg5+ {[%emt 0:00:47]} Kh7 {[%emt 0:00:06]} 55. Kg2 {[%emt 0:05:23]} Qe2+ {[%emt 0:00:59]} 56. Rf2 {[%emt 0:00:37]} Qe4+ {[%emt 0:00:06]} 57. Kh2 {[%emt 0:00:14]} Qc4 {[%emt 0:00:56]} 58. h5 {[%emt 0:02:07]} Qd4 {[%emt 0:03:28]} 59. Rgf5 {[%emt 0:01:40]} c4 {[%emt 0:01:06]} 60. R5f4 {[%emt 0:01:21]} Qd3 {[%emt 0:00:35]} 61. g4 {[%emt 0:01:43]} c3 {[%emt 0:01:07]} 62. g5 {[%emt 0:03:49]} Qd6 {[%emt 0:00:50]} 63. Kg1 {[%emt 0:08:32]} c2 {[%emt 0:00:41]} 64. Rc4 {[%emt 0:02:42]} Qd1+ {[%emt 0:01:50]} 1/2-1/2

[Event "WYCC 2018 G16"]
[Site "Halkidiki"]
[Date "2018.10.24"]
[Round "6"]
[White "Duson, Robin"]
[Black "Zhang, Cindy"]
[Result "1-0"]
[ECO "B31"]
[WhiteElo "1999"]
[BlackElo "1790"]
[Annotator "NA"]
[PlyCount "91"]
[EventDate "2018.10.20"]
[EventType "swiss"]
[EventCountry "GRE"]
[SourceTitle "playchess.com"]
[Source "ChessBase"]
[SourceQuality "1"]
[TimeControl "40/5400+30:1800+30"]

1. e4 {[%emt 0:00:00]} c5 {[%emt 0:00:00]} 2. Nf3 {[%emt 0:00:00]} Nc6 {[%emt 0:00:00]} 3. Bb5 {[%emt 0:00:18]} g6 {[%emt 0:00:11]} 4. Bxc6 {[%emt 0:00:17]} bxc6 {[%emt 0:00:14]} 5. O-O {[%emt 0:00:25]} Bg7 {[%emt 0:00:42]} 6. Re1 {[%emt 0:00:44]} e5 {[%emt 0:05:26]} 7. c3 {[%emt 0:02:29]} Ne7 {[%emt 0:02:08]} 8. d4 {[%emt 0:07:47]} cxd4 $14 {[%emt 0:01:56] LiveBook: 84 Games} 9. cxd4 {[%emt 0:00:44]} exd4 {[%emt 0:02:10]} 10. Nxd4 {[%emt 0:00:21]} O-O {[%emt 0:07:07]} 11. Nc3 {[%emt 0:03:05]} Rb8 {[%emt 0:09:40]} 12. Nb3 {[%emt 0:09:31]} d5 {[%emt 0:09:50]} 13. Bg5 {[%emt 0:06:14]} d4 {[%emt 0:13:27]} 14. Na4 {[%emt 0:08:52]} Re8 {[%emt 0:08:04]} 15. Qd2 {[%emt 0:08:21]} Be6 {[%emt 0:06:42]} 16. Nbc5 {[%emt 0:03:05]} Qd6 {[%emt 0:05:09]} 17. Nd3 {[%emt 0:05:10]} Rb5 {[%emt 0:03:58]} 18. b3 {[%emt 0:05:17]} f5 {[%emt 0:10:04]} 19. Bf4 {[%emt 0:05:15]} Qd8 {[%emt 0:00:51]} 20. Nac5 {[%emt 0:00:37]} Qc8 {[%emt 0:00:50]} 21. f3 {[%emt 0:01:38]} Kh8 {[%emt 0:02:11]} 22. Re2 {[%emt 0:03:09]} Ng8 {[%emt 0:02:48]} 23. Rae1 {[%emt 0:03:07]} Bf7 {[%emt 0:00:36]} 24. e5 {[%emt 0:04:33]} Be6 {[%emt 0:00:51]} 25. Bg3 {[%emt 0:03:05]} Nh6 {[%emt 0:00:35]} 26. Bf2 {[%emt 0:01:20]} Qd8 {[%emt 0:00:39]} 27. Qf4 {[%emt 0:04:24]} Nf7 {[%emt 0:01:26]} 28. Qxd4 {[%emt 0:01:23]} Bd5 {[%emt 0:01:15]} 29. Qc3 {[%emt 0:02:42]} g5 {[%emt 0:01:44]} 30. Bd4 {[%emt 0:01:12]} Be6 {[%emt 0:01:36]} 31. Nxe6 {[%emt 0:02:21]} Rxe6 {[%emt 0:00:02]} 32. Nc5 {[%emt 0:00:11]} Re8 {[%emt 0:00:29]} 33. Rd2 {[%emt 0:01:09]} Qd5 {[%emt 0:01:47]} 34. Kf1 {[%emt 0:04:04]} Nd8 {[%emt 0:01:09]} 35. e6 {[%emt 0:00:44]} Bxd4 {[%emt 0:00:07]} 36. Rxd4 {[%emt 0:00:24]} Rxc5 {[%emt 0:00:30]} 37. Rc4+ {[%emt 0:01:00]} Kg8 {[%emt 0:00:05]} 38. Rxc5 {[%emt 0:00:07]} Qd6 {[%emt 0:00:10]} 39. Rce5 {[%emt 0:01:55]} Re7 {[%emt 0:00:41]} 40. Qe3 {[%emt 0:00:00]} h6 {[%emt 0:00:00]} 41. h4 {[%emt 0:02:48]} Kg7 {[%emt 0:07:56]} 42. hxg5 {[%emt 0:02:39]} h5 {[%emt 0:01:14]} 43. f4 {[%emt 0:02:13]} a6 {[%emt 0:04:23]} 44. Qh3 {[%emt 0:02:00]} Nxe6 {[%emt 0:05:23]} 45. Qxf5 {[%emt 0:03:15]} Rf7 {[%emt 0:00:52]} 46. Rxe6 1-0